fUST/lending_fUST_20251018
["ID","MTS","AMOUNT","RATE_DAILY","PERIOD"]
[391747062,1760769046865,-500.0,0.00024657,2]
[391747063,1760769046874,-500.0,0.00024657,2]
[391747064,1760769046883,-906.48,0.00024657,2]
[391747065,1760769046893,-500.0,0.00024657,2]
[391747066,1760769046902,-698.75,0.00024657,2]
[391747067,1760769046911,-500.0,0.00024657,2]
[391747068,1760769046921,-1000.0,0.00024657,2]
[391747069,1760769046931,-923.01,0.00024657,2]
[391747070,1760769046940,-582.66,0.00024657,2]
[391747071,1760769046949,-500.0,0.00024657,2]
[391747072,1760769046958,-500.0,0.00024657,2]
[391747073,1760769046967,-500.0,0.00024657,2]
[391747074,1760769046976,-500.0,0.00024657,2]
[391747075,1760769046985,-500.0,0.00024657,2]
[391747076,1760769046994,-500.0,0.00024657,2]
[391747077,1760769047004,-500.0,0.00024657,2]
[391747078,1760769047013,-500.0,0.00024657,2]
[391747079,1760769047022,-500.0,0.00024657,2]
[391747080,1760769047031,-500.0,0.00024657,2]
[391747081,1760769047040,-500.0,0.00024657,2]
[391747082,1760769047049,-500.0,0.00024657,2]
[391747083,1760769047058,-500.0,0.00024657,2]
[391747084,1760769047067,-500.0,0.00024657,2]
[391747085,1760769047076,-500.0,0.00024657,2]
[391747086,1760769047085,-1853.53,0.00024657,2]
[391747087,1760769047095,-500.0,0.00024657,2]
[391747088,1760769047103,-500.0,0.00024657,2]
[391747089,1760769047113,-500.0,0.00024657,2]
[391747090,1760769047122,-500.0,0.00024657,2]
[391747091,1760769047131,-500.0,0.00024657,2]
[391747092,1760769047141,-500.0,0.00024657,2]
[391747093,1760769047151,-320.32310687,0.00024657,2]
[391747094,1760769047160,-500.0,0.00024657,2]
[391747096,1760769047169,-500.0,0.00024657,2]
[391747097,1760769047178,-1232.05,0.00024657,2]
[391747098,1760769047187,-1135.09,0.00024657,2]
[391747099,1760769047196,-521.82333849,0.00024657,2]
[391747100,1760769047205,-1919.28,0.00024657,2]
[391747101,1760769047215,-500.0,0.00024657,2]
[391747102,1760769047224,-500.0,0.00024657,2]
[391747103,1760769047233,-500.0,0.00024657,2]
[391747104,1760769047242,-1551.04,0.00024657,2]
[391747105,1760769047251,-500.0,0.00024657,2]
[391747106,1760769047261,-500.0,0.00024657,2]
[391747107,1760769047270,-500.0,0.00024657,2]
[391747108,1760769047279,-1146.28,0.00024657,2]
[391747109,1760769047288,-500.0,0.00024657,2]
[391747110,1760769047298,-500.0,0.00024657,2]
[391747111,1760769047307,-896.03,0.00024657,2]
[391747112,1760769047316,-177.81778695,0.00024657,2]
[391747113,1760769047327,-160.65666529,0.00024657,2]
[391747114,1760769047336,-500.0,0.00024657,2]
[391747115,1760769047349,-508.25562482,0.00024657,2]
[391747116,1760769047358,-1482.73,0.00024657,2]
[391747117,1760769047367,-484.71982659,0.00024657,2]
[391747118,1760769047376,-500.0,0.00024657,2]
[391747119,1760769047385,-450.39198376,0.00024657,2]
[391747120,1760769047394,-500.0,0.00024657,2]
[391747121,1760769047403,-500.0,0.00024657,2]
[391747122,1760769047412,-1482.0,0.00024657,2]
[391747123,1760769047423,-500.0,0.00024657,2]
[391747124,1760769047432,-500.0,0.00024657,2]
[391747125,1760769047441,-401.66876941,0.00024657,2]
[391747126,1760769047450,-500.0,0.00024657,2]
[391747127,1760769047459,-500.0,0.00024657,2]
[391747128,1760769047468,-500.0,0.00024657,2]
[391747129,1760769047477,-394.38154538,0.00024657,2]
[391747130,1760769047487,-580.0,0.00024657,2]
[391747131,1760769047496,-500.0,0.00024657,2]
[391747132,1760769047505,-500.0,0.00024657,2]
[391747133,1760769047514,-2384.24,0.00024657,2]
[391747134,1760769047523,-500.0,0.00024657,2]
[391747135,1760769047532,-500.0,0.00024657,2]
[391747136,1760769047542,-500.0,0.00024657,2]
[391747137,1760769047552,-1370.41,0.00024657,2]
[391747138,1760769047561,-215.41505488,0.00024657,2]
[391747139,1760769047570,-636.44,0.00024657,2]
[391747140,1760769047579,-502.85704475,0.00024657,2]
[391747141,1760769047589,-500.0,0.00024657,2]
[391747142,1760769047598,-1094.97,0.00024657,2]
[391747143,1760769047607,-502.42331847,0.00024657,2]
[391747144,1760769047616,-500.0,0.00024657,2]
[391747145,1760769047626,-625.14,0.00024657,2]
[391747146,1760769047635,-886.42,0.00024657,2]
[391747147,1760769047644,-386.14995092,0.00024657,2]
[391747148,1760769047654,-500.0,0.00024657,2]
[391747149,1760769047663,-2555.87,0.00024657,2]
[391747150,1760769047672,-500.0,0.00024657,2]
[391747151,1760769047682,-800.88,0.00024657,2]
[391747152,1760769047691,-544.0,0.00024657,2]
[391747153,1760769047701,-500.0,0.00024657,2]
[391747154,1760769047711,-457.67135423,0.00024657,2]
[391747155,1760769047720,-500.0,0.00024657,2]
[391747156,1760769047730,-777.82,0.00024657,2]
[391747157,1760769047739,-500.0,0.00024657,2]
[391747158,1760769047749,-151.0,0.00024657,2]
[391747159,1760769047758,-500.0,0.00024657,2]
[391747160,1760769047768,-500.0,0.00024657,2]
[391747161,1760769047777,-151.0,0.00024657,2]
[391747162,1760769047787,-1697.38,0.00024657,2]
[391747163,1760769047798,-500.30876859,0.00024657,2]
[391747164,1760769047809,-500.0,0.00024657,2]
[391747165,1760769047819,-151.0,0.00024657,2]
[391747166,1760769047828,-500.0,0.00024657,2]
[391747167,1760769047839,-500.0,0.00024657,2]
[391747168,1760769047848,-154.73715117,0.00024657,2]
[391747169,1760769047857,-2100.82,0.00024657,2]
[391747170,1760769047866,-500.0,0.00024657,2]
[391747171,1760769047876,-500.0,0.00024657,2]
[391747172,1760769047887,-245.4237881,0.00024657,2]
[391747173,1760769047896,-500.0,0.00024657,2]
[391747174,1760769047905,-500.0,0.00024657,2]
[391747175,1760769047914,-151.0,0.00024657,2]
[391747176,1760769047923,-151.0,0.00024657,2]
[391747177,1760769047932,-500.0,0.00024657,2]
[391747178,1760769047942,-1841.13,0.00024657,2]
[391747179,1760769047951,-152.47409756,0.00024657,2]
[391747180,1760769047960,-722.4,0.00024657,2]
[391747181,1760769047969,-1164.86,0.00024657,2]
[391747182,1760769047978,-151.0,0.00024657,2]
[391747183,1760769047987,-1506.93,0.00024657,2]
[391747184,1760769047996,-245.5221496,0.00024657,2]
[391747185,1760769048005,-151.75428275,0.00024657,2]
[391747186,1760769048014,-151.0,0.00024657,2]
[391747187,1760769048023,-500.0,0.00024657,2]
[391747188,1760769048033,-510.13295625,0.00024657,2]
[391747189,1760769048042,-500.0,0.00024657,2]
[391747190,1760769048051,-500.0,0.00024657,2]
[391747191,1760769048060,-1863.29,0.00024657,2]
[391747192,1760769048070,-1021.41,0.00024657,2]
[391747193,1760769048079,-500.0,0.00024657,2]
[391747194,1760769048089,-3115.74,0.00024657,2]
[391747195,1760769048098,-500.0,0.00024657,2]
[391747196,1760769048107,-547.93,0.00024657,2]
[391747197,1760769048116,-497.07726695,0.00024657,2]
[391747198,1760769048125,-500.0,0.00024657,2]
[391747199,1760769048135,-1383.41,0.00024657,2]
[391747200,1760769048144,-500.0,0.00024657,2]
[391747201,1760769048154,-500.0,0.00024657,2]
[391747202,1760769048163,-450.4852813,0.00024657,2]
[391747203,1760769048172,-500.0,0.00024657,2]
[391747204,1760769048181,-500.0,0.00024657,2]
[391747205,1760769048190,-1077.52,0.00024657,2]
[391747206,1760769048200,-867.51,0.00024657,2]
[391747207,1760769048209,-500.0,0.00024657,2]
[391747208,1760769048218,-500.0,0.00024657,2]
[391747209,1760769048228,-625.52,0.00024657,2]
[391747210,1760769048237,-500.0,0.00024657,2]
[391747211,1760769048247,-500.0,0.00024657,2]
[391747212,1760769048256,-500.0,0.00024657,2]
[391747213,1760769048266,-500.0,0.00024657,2]
[391747214,1760769048275,-381.7383947,0.00024657,2]
[391747215,1760769048284,-500.0,0.00024657,2]
[391747216,1760769048294,-500.0,0.00024657,2]
[391747217,1760769048303,-500.0,0.00024657,2]
[391747218,1760769048313,-500.0,0.00024657,2]
[391747219,1760769048322,-500.0,0.00024657,2]
[391747220,1760769048331,-2021.17,0.00024657,2]
[391747221,1760769048341,-267.12130933,0.00024657,2]
[391747222,1760769048351,-500.0,0.00024657,2]
[391747223,1760769048361,-313.86401623,0.00024657,2]
[391747224,1760769048370,-555.08,0.00024657,2]
[391747225,1760769048380,-500.0,0.00024657,2]
[391747226,1760769048390,-500.0,0.00024657,2]
[391747227,1760769048399,-1477.04,0.00024657,2]
[391747228,1760769048408,-500.0,0.00024657,2]
[391747229,1760769048418,-2325.2,0.00024657,2]
[391747230,1760769048427,-500.0,0.00024657,2]
[391747231,1760769048436,-500.0,0.00024657,2]
[391747232,1760769048445,-247.56490172,0.00024657,2]
[391747233,1760769048455,-500.0,0.00024657,2]
[391747234,1760769048465,-327.85166681,0.00024657,2]
[391747235,1760769048474,-500.0,0.00024657,2]
[391747236,1760769048483,-481.81365062,0.00024657,2]
[391747237,1760769048492,-1000.0,0.00024657,2]
[391747238,1760769048502,-772.18,0.00024657,2]
[391747239,1760769048511,-500.0,0.00024657,2]
[391747240,1760769048520,-886.8,0.00024657,2]
[391747241,1760769048530,-500.0,0.00024657,2]
[391747242,1760769048539,-500.0,0.00024657,2]
[391747243,1760769048549,-193.8726211,0.00024657,2]
[391747244,1760769050963,160.0,0.00029,120]
[391747245,1760769057207,417.15472785,0.000241,2]
[391747247,1760769065937,150.0,0.00019578,2]
[391747248,1760769066398,279.69,0.0002051,2]
[391747249,1760769066818,419.53,0.00021443,2]
[391747250,1760769067247,559.37,0.00022375,2]
[391747251,1760769067560,160.0,0.00034132,60]
[391747252,1760769067734,699.21,0.00023307,2]
[391747253,1760769081297,160.0,0.00029,120]
[391747254,1760769081579,200.0,0.00034132,120]
[391747255,1760769127692,188.0,0.00034132,60]
[391747256,1760769146683,150.0,0.000198,2]
[391747257,1760769147168,226.03,0.00020743,2]
[391747258,1760769147672,339.05,0.00021686,2]
[391747259,1760769148103,452.07,0.00022629,2]
[391747260,1760769148522,565.08,0.00023571,2]
[391747261,1760769152088,-859.75149822,0.0002414,2]
[391747262,1760769152122,-300.0,0.00024249,2]
[391747263,1760769152157,-1200.0,0.00024249,2]
[391747264,1760769152921,-1339.83033276,0.0002425,2]
[391747265,1760769153104,-10000.01,0.0002425,2]
[391747266,1760769153245,-10000.01,0.0002425,2]
[391747267,1760769153552,-10000.01,0.0002425,2]
[391747268,1760769158654,-10000.01,0.0002425,2]
[391747269,1760769158947,-10000.01,0.0002425,2]
[391747270,1760769159108,-10000.01,0.0002425,2]
[391747271,1760769159263,-10000.01,0.0002425,2]
[391747273,1760769168947,-98558.08264769,0.0002425,2]
[391747274,1760769188017,1470.02544186,0.00034117,120]
[391747276,1760769226616,150.0,0.00019955,2]
[391747277,1760769227030,229.14,0.00020905,2]
[391747278,1760769227564,343.71,0.00021856,2]
[391747279,1760769228054,458.28,0.00022806,2]
[391747280,1760769228539,572.85,0.00023756,2]
[391747281,1760769232016,5000.0,0.00023892,2]
[391747282,1760769232808,-168.0,0.00023945,2]
[391747283,1760769237130,-200.0,0.00023945,2]
[391747284,1760769239786,-285.61803115,0.00023945,2]
[391747285,1760769248461,3246.03,0.00023892,2]
[391747286,1760769248490,1753.97,0.00023892,2]
[391747287,1760769257231,5000.0,0.00023945,2]
[391747288,1760769272951,5000.0,0.00023945,2]
[391747289,1760769276157,0.01,0.00023311,2]
[391747290,1760769276185,1046.365179,0.00023311,2]
[391747291,1760769281105,298.63654304,0.00023945,2]
[391747292,1760769298163,5000.0,0.00023784,2]
[391747293,1760769307720,150.0,0.00019851,2]
[391747294,1760769308225,184.49,0.00020796,2]
[391747295,1760769308644,276.74,0.00021741,2]
[391747296,1760769309100,368.98,0.00022686,2]
[391747297,1760769309237,461.23,0.00023632,2]
[391747298,1760769322012,3558.57,0.00023785,2]
[391747299,1760769322045,1441.43,0.00023785,2]
[391747300,1760769345426,5000.0,0.00023785,2]
[391747301,1760769369822,3558.58,0.00023785,2]
[391747302,1760769369860,1441.42,0.00023785,2]
[391747303,1760769381738,200.0,0.00034117,120]
[391747304,1760769386152,150.0,0.0001979,2]
[391747305,1760769386429,150.0,0.00020733,2]
[391747306,1760769386835,221.7,0.00021675,2]
[391747307,1760769387254,295.6,0.00022617,2]
[391747308,1760769387834,369.5,0.0002356,2]
[391747309,1760769393259,5000.0,0.00023945,2]
[391747310,1760769416706,3813.21,0.00023945,2]
[391747311,1760769416736,1186.79,0.00023945,2]
[391747312,1760769440331,5000.0,0.00023785,2]
[391747314,1760769459880,1047.370856,0.00013699,2]
[391747315,1760769460095,1047.370856,0.00020187,2]
[391747316,1760769464475,5000.0,0.00023824,2]
[391747317,1760769465212,150.0,0.00019848,2]
[391747318,1760769466094,150.0,0.00020793,2]
[391747319,1760769466499,176.39,0.00021738,2]
[391747320,1760769467027,235.18,0.00022683,2]
[391747321,1760769467461,293.98,0.00023628,2]
[391747322,1760769488110,5000.0,0.00023892,2]
[391747323,1760769510710,5000.0,0.00023913,2]
[391747324,1760769534403,5000.0,0.00023913,2]
[391747325,1760769538172,-159.38196885,0.00023945,2]
[391747326,1760769541098,150.0,0.00019813,2]
[391747327,1760769541543,150.0,0.00020757,2]
[391747328,1760769542090,150.0,0.000217,2]
[391747329,1760769542552,183.99,0.00022644,2]
[391747330,1760769543124,229.99,0.00023587,2]
[391747331,1760769549878,1000.0,0.00029041,120]
[391747332,1760769557763,5000.0,0.00024102,2]
[391747333,1760769580728,1912.61,0.00024102,2]
[391747334,1760769594014,195.6473,0.00023316,2]
[391747335,1760769595259,15000.0,0.00034114,60]
[391747336,1760769606848,15000.0,0.00034114,60]
[391747337,1760769615417,150.0,0.00019754,2]
[391747338,1760769615928,150.0,0.00020694,2]
[391747339,1760769616340,150.0,0.00021635,2]
[391747340,1760769616717,15000.0,0.00034114,60]
[391747341,1760769616771,150.0,0.00022576,2]
[391747342,1760769617207,175.01,0.00023516,2]
[391747343,1760769636855,15000.0,0.00034114,60]
[391747344,1760769664018,15000.0,0.00034114,60]
[391747345,1760769681533,200.0,0.00034114,120]
[391747346,1760769688058,150.0,0.00019743,2]
[391747347,1760769688480,150.0,0.00020683,2]
[391747348,1760769688904,150.0,0.00021624,2]
[391747349,1760769689347,150.0,0.00022564,2]
[391747350,1760769689782,150.0,0.00023504,2]
[391747351,1760769702864,183.9987623,0.00024102,2]
[391747352,1760769702891,233.15596555,0.00024102,2]
[391747353,1760769733964,6646.74724243,0.00024102,2]
[391747354,1760769760649,150.0,0.00019744,2]
[391747355,1760769761072,150.0,0.00020684,2]
[391747356,1760769761583,150.0,0.00021625,2]
[391747358,1760769762157,150.0,0.00022565,2]
[391747359,1760769762574,150.0,0.00023505,2]
[391747360,1760769781951,2370.10679202,0.00024102,2]
[391747361,1760769781981,2629.89320798,0.00024102,2]
[391747362,1760769805749,2647.89095637,0.00024102,2]
[391747366,1760769832305,150.0,0.00019495,2]
[391747367,1760769832734,150.0,0.00020423,2]
[391747368,1760769833163,150.0,0.00021352,2]
[391747373,1760769939226,2352.10904363,0.00024102,2]
[391747374,1760769983388,200.0,0.00034113,120]
[391747375,1760770006294,-630.93906988,0.00024173,2]
[391747376,1760770006328,-440.99986852,0.00024173,2]
[391747377,1760770006361,-557.02,0.0002424,3]
[391747378,1760770006396,-1200.0,0.00024249,2]
[391747379,1760770006429,-300.0,0.00024249,2]
[391747380,1760770024251,-300.0,0.00024249,2]
[391747381,1760770039438,-1573.75955036,0.0002425,2]
[391747382,1760770042567,-10000.01,0.0002425,2]
[391747383,1760770048462,-10000.01,0.0002425,2]
[391747384,1760770054461,-10000.01,0.0002425,2]
[391747385,1760770060499,-10000.01,0.0002425,2]
[391747386,1760770125336,150.0,0.00019391,2]
[391747387,1760770125732,150.0,0.00020315,2]
[391747388,1760770126216,150.0,0.00021238,2]
[391747389,1760770126752,150.0,0.00022161,2]
[391747390,1760770127159,150.0,0.00023085,2]
[391747391,1760770127587,173.2,0.00024008,2]
[391747392,1760770198830,150.0,0.00019823,2]
[391747393,1760770199337,150.0,0.00020767,2]
[391747394,1760770199785,150.0,0.00021711,2]
[391747395,1760770200230,150.0,0.00022655,2]
[391747396,1760770200657,150.0,0.00023599,2]
[391747397,1760770225658,586.0,0.00023694,2]
[391747488,1760770237941,-896.05500154,0.00024247,2]
[391747489,1760770237951,-300.0,0.00024249,2]
[391747490,1760770237960,-6451.14918543,0.0002425,2]
[391747491,1760770237974,-54230.59576358,0.0002425,2]
[391747492,1760770237988,-25429.38194755,0.0002425,2]
[391747493,1760770238002,-2052.01124241,0.0002425,2]
[391747548,1760770242944,-368.87468,0.0002425,2]
[391747549,1760770242983,-424.0,0.0002425,2]
[391747554,1760770249212,5000.0,0.00024133,2]
[391747555,1760770270080,150.0,0.00019828,2]
[391747556,1760770270510,150.0,0.00020772,2]
[391747557,1760770270669,773.50883,0.00023487,2]
[391747558,1760770270922,150.0,0.00021716,2]
[391747559,1760770271879,-255.08697757,0.00024249,2]
[391747560,1760770272284,3776.50117,0.00024133,2]
[391747561,1760770272317,1223.49883,0.00024133,2]
[391747562,1760770272364,-44.91302243,0.00024249,2]
[391747563,1760770272738,-6427.48512514,0.0002425,2]
[391747564,1760770273973,-158.44326257,0.0002425,2]
[391747565,1760770274955,-0.01,0.00024133,2]
[391747566,1760770274991,-9999.99,0.00024133,2]
[391747567,1760770277936,-10000.01,0.0002425,2]
[391747568,1760770281080,-10000.01,0.0002425,2]
[391747569,1760770281297,-10000.01,0.0002425,2]
[391747570,1760770281436,-10000.01,0.0002425,2]
[391747571,1760770281604,-10000.01,0.0002425,2]
[391747572,1760770281764,-10000.01,0.0002425,2]
[391747573,1760770281862,200.0,0.00034114,120]
[391747574,1760770286981,-2986.21626251,0.0002425,2]
[391747575,1760770287018,-500.0,0.00024273,2]
[391747576,1760770287056,-500.0,0.00024273,2]
[391747577,1760770287094,-500.0,0.00024273,2]
[391747578,1760770287132,-500.0,0.00024273,2]
[391747579,1760770287278,-27.57747498,0.00024273,2]
[391747580,1760770306646,9433.88433895,0.00018,2]
[391747581,1760770306669,566.11566105,0.00018,2]
[391747582,1760770307464,-276.12269937,0.0002403,2]
[391747583,1760770308240,-4723.87730063,0.0002403,2]
[391747584,1760770308278,-79.83287372,0.00024273,2]
[391747585,1760770308329,-392.5896513,0.00024273,2]
[391747586,1760770317133,-500.0,0.00024273,2]
[391747587,1760770317172,-500.0,0.00024273,2]
[391747588,1760770317211,-500.0,0.00024273,2]
[391747589,1760770317249,-500.0,0.00024273,2]
[391747590,1760770317286,-500.0,0.00024273,2]
[391747591,1760770317322,-500.0,0.00024273,2]
[391747592,1760770317357,-500.0,0.00024273,2]
[391747593,1760770317389,-500.0,0.00024273,2]
[391747594,1760770317422,-500.0,0.00024273,2]
[391747595,1760770317457,-379.0,0.0002428,2]
[391747596,1760770317493,-74.01,0.00024299,2]
[391747597,1760770317727,-93.99,0.00024299,2]
[391747598,1760770320852,10000.0,0.00018,2]
[391747599,1760770322143,-174.19193565,0.0002403,2]
[391747600,1760770323184,-4825.80806435,0.0002403,2]
[391747601,1760770323244,-348.3938713,0.00024299,2]
[391747602,1760770329202,-54.97951151,0.00024299,2]
[391747603,1760770329245,-170.0,0.00024326,2]
[391747604,1760770329284,-502.13265484,0.00024349,2]
[391747605,1760770329327,-813.0,0.00024394,2]
[391747606,1760770329370,-379.0,0.00024406,2]
[391747607,1760770329410,-300.0,0.0002442,2]
[391747608,1760770329683,-5561.7856673,0.00024421,2]
[391747609,1760770334087,10000.0,0.00018,2]
[391747610,1760770335232,-500.0,0.00024249,2]
[391747611,1760770335277,-500.0,0.00024249,2]
[391747612,1760770335317,-399.17833842,0.00024249,2]
[391747613,1760770335357,-162.48720833,0.00024249,2]
[391747614,1760770335402,-500.0,0.00024249,2]
[391747615,1760770335454,-500.0,0.00024249,2]
[391747616,1760770335492,-500.0,0.00024249,2]
[391747617,1760770335534,-350.0,0.00024249,2]
[391747618,1760770335573,-500.0,0.00024249,2]
[391747619,1760770335611,-500.0,0.00024249,2]
[391747620,1760770335650,-192.39880543,0.00024249,2]
[391747621,1760770335690,-291.88129564,0.00024249,2]
[391747622,1760770336015,-208.11870436,0.00024249,2]
[391747623,1760770338380,-150.0,0.00019745,2]
[391747624,1760770339804,-150.0,0.00020685,2]
[391747625,1760770339831,-150.0,0.00021626,2]
[391747626,1760770339861,-41.84173902,0.00022566,2]
[391747627,1760770343346,-108.15826098,0.00022566,2]
[391747628,1760770343377,-64.34173902,0.00023506,2]
[391747629,1760770345343,-165.33795216,0.00020478,2]
[391747630,1760770351249,-376.64095766,0.00020478,2]
[391747631,1760770353494,-300.00000003,0.00020478,2]
[391747632,1760770353564,-4158.02109015,0.00020478,2]
[391747633,1760770353612,-85.65826098,0.00023506,2]
[391747634,1760770353655,-500.0,0.00024249,2]
[391747635,1760770353700,-12.65129774,0.00024249,2]
[391747636,1760770353818,-487.34870226,0.00024249,2]
[391747637,1760770356371,-500.0,0.00024249,2]
[391747638,1760770356412,-500.0,0.00024249,2]
[391747639,1760770356453,-500.0,0.00024249,2]
[391747640,1760770356493,-500.0,0.00024249,2]
[391747641,1760770356533,-261.31044955,0.00024249,2]
[391747642,1760770356571,-500.0,0.00024249,2]
[391747643,1760770356609,-500.0,0.00024249,2]
[391747644,1760770356645,-500.0,0.00024249,2]
[391747645,1760770356682,-500.0,0.00024249,2]
[391747646,1760770356721,-500.0,0.00024249,2]
[391747647,1760770356981,-477.3891009,0.00024249,2]
[391747648,1760770359416,-22.6108991,0.00024249,2]
[391747649,1760770359456,-500.0,0.00024249,2]
[391747650,1760770359494,-3907.34328772,0.00024421,2]
[391747651,1760770359576,-1140.10162636,0.00024421,2]
[391747652,1760770366715,5000.0,0.00024136,2]
[391747653,1760770370579,-197.39357263,0.00024249,2]
[391747654,1760770375561,-300.0,0.00024249,2]
[391747655,1760770377758,-2.60642737,0.00024249,2]
[391747656,1760770377781,-241.80357263,0.00024249,2]
[391747657,1760770389923,5000.0,0.00024136,2]
[391747658,1760770390584,-153.0,0.0002415,2]
[391747659,1760770392876,-280.32084301,0.0002415,2]
[391747660,1760770394357,-262.06059463,0.0002415,2]
[391747661,1760770395798,-0.01,0.0002415,2]
[391747662,1760770396106,-10000.01,0.0002415,2]
[391747663,1760770396256,-10000.01,0.0002415,2]
[391747664,1760770396398,-10000.01,0.0002415,2]
[391747665,1760770396582,-10000.01,0.0002415,2]
[391747666,1760770397909,-165.96,0.0002414,3]
[391747667,1760770397933,-178.76360458,0.0002415,2]
[391747668,1760770401662,-10000.01,0.0002415,2]
[391747669,1760770401980,-10000.01,0.0002415,2]
[391747670,1760770402010,-10000.01,0.0002415,2]
[391747671,1760770402113,-10000.01,0.0002415,2]
[391747672,1760770402248,-10000.01,0.0002415,2]
[391747673,1760770410931,-150.0,0.00019697,2]
[391747674,1760770410979,-150.0,0.00020635,2]
[391747675,1760770411021,-150.0,0.00021573,2]
[391747676,1760770411061,-150.0,0.00022511,2]
[391747677,1760770411097,-365.53,0.0002414,3]
[391747678,1760770411258,-8068.95,0.0002415,2]
[391747679,1760770413879,-150.0,0.00023449,2]
[391747680,1760770413934,-9700.01,0.0002415,2]
[391747681,1760770416899,-10000.01,0.0002415,2]
[391747682,1760770417199,-10000.01,0.0002415,2]
[391747683,1760770417369,-10000.01,0.0002415,2]
[391747684,1760770417461,-10000.01,0.0002415,2]
[391747685,1760770417613,-10000.01,0.0002415,2]
[391747686,1760770417757,-10000.01,0.0002415,2]
[391747687,1760770419768,-182.77,0.0002414,3]
[391747688,1760770419816,-9634.47,0.0002415,2]
[391747689,1760770422788,-10000.01,0.0002415,2]
[391747690,1760770422950,-10000.01,0.0002415,2]
[391747691,1760770423084,-10000.01,0.0002415,2]
[391747692,1760770423248,-10000.01,0.0002415,2]
[391747693,1760770423385,-10000.01,0.0002415,2]
[391747694,1760770428817,-10000.01,0.0002415,2]
[391747695,1760770428927,-10000.01,0.0002415,2]
[391747696,1760770429103,-10000.01,0.0002415,2]
[391747697,1760770429263,-10000.01,0.0002415,2]
[391747698,1760770437889,-326.13544412,0.0002315,2]
[391747699,1760770437925,-4347.73911176,0.00023909,2]
[391747700,1760770437976,-652.26088824,0.00023909,2]
[391747701,1760770438041,-10000.01,0.0002415,2]
[391747702,1760770438205,-10000.01,0.0002415,2]
[391747703,1760770438336,-10000.01,0.0002415,2]
[391747704,1760770441019,-10000.01,0.0002415,2]
[391747705,1760770443932,-300.0,0.00024149,2]
[391747706,1760770444000,-9400.01,0.0002415,2]
[391747707,1760770444066,-10000.01,0.0002415,2]
[391747708,1760770446912,-10000.01,0.0002415,2]
[391747709,1760770447071,-10000.01,0.0002415,2]
[391747710,1760770451261,-166.54721963,0.00023986,8]
[391747711,1760770456568,-333.45278037,0.00023986,8]
[391747712,1760770456590,-15.02288235,0.00023986,8]
[391747713,1760770460580,-197.35056734,0.00023986,8]
[391747714,1760770467989,702.96910115,0.00023913,2]
[391747715,1760770481473,150.0,0.00019704,2]
[391747716,1760770481928,290.28,0.00020642,2]
[391747717,1760770482591,435.41,0.00021581,2]
[391747718,1760770482949,580.55,0.00022519,2]
[391747719,1760770483457,725.69,0.00023457,2]
[391747720,1760770491213,-16.19655031,0.00023986,8]
[391747721,1760770491235,-289.99524509,0.00023986,2]
[391747722,1760770515562,3610.83030007,0.00021964,2]